fUST/lending_fUST_20260316
["ID","MTS","AMOUNT","RATE_DAILY","PERIOD"]
[408432243,1773606645275,-1316.27915126,0.00016731,2]
[408432244,1773606645287,-41118.81175925,0.00016731,2]
[408432253,1773606646654,-551.0,0.00016731,2]
[408432291,1773607831554,-2495.0,3.055e-05,2]
[408432297,1773607831609,-2505.0,3.055e-05,2]
[408432299,1773607831619,-3511.82275492,3.085e-05,2]
[408432301,1773607831628,-167.284265,3.186e-05,2]
[408432304,1773607831638,-167.284265,3.717e-05,2]
[408432306,1773607831647,-250.0,4.209e-05,2]
[408432308,1773607831656,-167.284265,4.247e-05,2]
[408432310,1773607831666,-167.284265,4.778e-05,2]
[408432312,1773607831675,-167.284265,5.309e-05,2]
[408432315,1773607831684,-167.284265,5.84e-05,2]
[408432318,1773607831694,-1200.0,6.369e-05,2]
[408432320,1773607831703,-167.284265,6.371e-05,2]
[408432322,1773607831712,-300.0,6.564e-05,2]
[408432324,1773607831721,-300.0,6.564e-05,2]
[408432326,1773607831730,-300.0,6.564e-05,2]
[408432328,1773607831739,-300.0,6.564e-05,2]
[408432330,1773607831750,-222.5498329,6.698e-05,2]
[408432332,1773607831759,-529.476185,6.742e-05,2]
[408432333,1773607831768,-420.0,7.22e-05,2]
[408432335,1773607831777,-308.0,7.22e-05,2]
[408432337,1773607831788,-420.0,7.22e-05,2]
[408432339,1773607831801,-420.0,7.22e-05,2]
[408432341,1773607831811,-500.0,7.573e-05,2]
[408432343,1773607831820,-488.268821,7.573e-05,2]
[408432478,1773607837723,-11.731179,7.573e-05,2]
[408432480,1773607837733,-500.0,7.573e-05,2]
[408432482,1773607837742,-500.0,7.573e-05,2]
[408432484,1773607837755,-6840.13476883,7.6e-05,2]
[408432486,1773607837766,-18206.60300732,7.6e-05,2]
[408432489,1773607837778,-50518.21694263,7.6e-05,2]
[408432491,1773607837790,-414.06079803,7.6e-05,2]
[408432581,1773607840016,-4167.72333545,7.6e-05,2]
[408432583,1773607840028,-7145.3,7.6e-05,2]
[408432585,1773607840039,-603.519,7.6e-05,2]
[408432881,1773607842787,-62458.63843654,7.6e-05,2]
[408432892,1773607842894,-11680.0,7.6e-05,2]
[408432895,1773607842905,-2495.6408671,7.6e-05,2]
[408432897,1773607842916,-2709.66131519,7.6e-05,2]
[408432899,1773607842927,-1738.99624944,7.6e-05,2]
[408432961,1773607845728,-3906.88525155,7.6e-05,2]
[408432962,1773607845994,-106375.69850105,7.6e-05,2]
[408432972,1773608463142,-1250.71623839,7.157e-05,2]
[408433035,1773609002399,171.34,2e-05,2]
[408433205,1773609037900,-5000.0,6.738e-05,2]
[408433206,1773609037910,-1079.37623839,6.806e-05,2]
[408433207,1773609037919,-517.0,6.806e-05,2]
[408433208,1773609037928,-1318.27797758,7.142e-05,2]
[408433209,1773609037938,-1200.0,7.239e-05,2]
[408433210,1773609037947,-300.0,7.241e-05,2]
[408433211,1773609037956,-2605.85040832,7.242e-05,2]
[408433212,1773609037964,-367.290956,7.302e-05,2]
[408433213,1773609037975,-3893.42283906,7.342e-05,2]
[408433214,1773609037984,-500.0,7.553e-05,2]
[408433215,1773609037993,-50000.0,7.572e-05,2]
[408433216,1773609038002,-500.0,7.573e-05,2]
[408433217,1773609038011,-500.0,7.573e-05,2]
[408433218,1773609038020,-500.0,7.573e-05,2]
[408433219,1773609038029,-367.290956,7.61e-05,2]
[408433220,1773609038043,-367.290956,7.917e-05,2]
[408433221,1773609038052,-4215.17225151,7.964e-05,2]
[408433222,1773609038061,-300.0,7.965e-05,2]
[408433223,1773609038070,-1000.0,8.101e-05,2]
[408433224,1773609038080,-1000.0,8.121e-05,2]
[408433225,1773609038089,-1000.0,8.121e-05,2]
[408433226,1773609038098,-1000.0,8.121e-05,2]
[408433227,1773609038110,-371.98679169,8.219e-05,2]
[408433228,1773609038119,-500.0,8.219e-05,2]
[408433229,1773609038129,-367.290956,8.224e-05,2]
[408433230,1773609038139,-500.0,8.493e-05,2]
[408433231,1773609038147,-367.290956,8.532e-05,2]
[408433232,1773609038156,-1500.0,8.648e-05,2]
[408433233,1773609038165,-513.64070648,8.668e-05,2]
[408433234,1773609038175,-1500.0,8.668e-05,2]
[408433235,1773609038184,-500.0,8.767e-05,2]
[408433236,1773609038193,-367.290956,8.839e-05,2]
[408433237,1773609038202,-5040.83665329,8.952e-05,2]
[408433238,1773609038211,-2000.0,9.216e-05,2]
[408433239,1773609038220,-1175.1592376,9.358e-05,2]
[408433240,1773609038230,-46347.6710423,9.358e-05,2]
[408433241,1773609038240,-25444.4949333,9.358e-05,2]
[408433242,1773609038250,-1637.8947533,9.358e-05,2]
[408433243,1773609038259,-1448.25022712,9.764e-05,2]
[408433244,1773609038269,-5180.9952698,9.939e-05,2]
[408433245,1773609038278,-10087.04960883,0.0001,10]
[408433246,1773609038288,-1175.1592376,0.00010368,2]
[408433247,1773609038297,-25444.4949333,0.00010581,2]
[408433248,1773609038307,-1637.8947533,0.00010765,2]
[408433249,1773609038317,-5866.50105523,0.00010927,2]
[408433250,1773609038326,-10341.5632621,0.00011268,2]
[408433251,1773609038336,-1175.1592376,0.00011377,2]
[408433252,1773609038345,-155.07,0.000115,2]
[408433253,1773609038355,-151.806,0.000115,2]
[408433254,1773609038364,-150.093,0.000115,2]
[408433255,1773609038374,-2185.0,0.000115,2]
[408433256,1773609038383,-1394.0,0.000115,2]
[408433257,1773609038392,-640.0,0.000115,2]
[408433258,1773609038402,-2307.5146668,0.00011695,2]
[408433259,1773609038411,-25444.4949333,0.00011804,2]
[408433260,1773609038421,-6468.56770055,0.00011915,2]
[408433261,1773609038431,-10000.0,0.00012164,2]
[408433262,1773609038440,-1637.8947533,0.00012173,2]
[408433263,1773609038450,-1175.1592376,0.00012387,2]
[408433264,1773609038459,-300.0,0.00012517,2]
[408433265,1773609038468,-644.68309207,0.000129,2]
[408433266,1773609038477,-644.68309207,0.000129,2]
[408433267,1773609038487,-6692.16545717,0.00012903,2]
[408433268,1773609038496,-25444.4949333,0.00013027,2]
[408433270,1773609038505,-600.0,0.00013065,2]
[408433271,1773609038514,-644.68309207,0.00013162,2]
[408433272,1773609038523,-1637.8947533,0.0001358,2]
[408433273,1773609038533,-900.0,0.00013613,2]
[408433274,1773609038543,-998.273423,0.00013699,2]
[408433275,1773609038552,-1000.0,0.00013699,2]
[408433276,1773609038561,-500.0,0.00013699,2]
[408433277,1773609038571,-500.0,0.00013699,2]
[408433278,1773609038580,-500.0,0.00013699,2]
[408433279,1773609038589,-500.0,0.00013699,2]
[408433280,1773609038598,-1000.0,0.00013699,2]
[408433281,1773609038607,-7517.82985912,0.00013891,2]
[408433282,1773609038616,-1200.0,0.00014161,2]
[408433283,1773609038625,-1000.0,0.00014247,2]
[408433284,1773609038634,-722.2273881,0.00014247,2]
[408433285,1773609038643,-1000.0,0.00014247,2]
[408433286,1773609038652,-300.26609615,0.00014247,2]
[408433287,1773609038661,-1500.0,0.00014708,2]
[408433288,1773609038670,-1046.18758838,0.00014795,2]
[408433289,1773609038680,-1500.0,0.00014795,2]
[408433290,1773609038689,-7756.14013129,0.00014879,2]
[408433291,1773609038698,-152.59166234,0.000149,2]
[408433292,1773609038707,-183.996,0.00014997,2]
[408433293,1773609038716,-2751.0,0.00015,2]
[408433294,1773609038726,-468.0,0.00015,2]
[408433295,1773609038735,-11353.0,0.00015,2]
[408433296,1773609038744,-270.83333333,0.00015,2]
[408433297,1773609038753,-170.730575,0.00015068,2]
[408433298,1773609038766,-2150.738,0.00015094,2]
[408433299,1773609038776,-1800.0,0.00015256,2]
[408433300,1773609038785,-2000.0,0.00015342,2]
[408433301,1773609038795,-2000.0,0.00015449,7]
[408433302,1773609038804,-38000.0,0.00015594,3]
[408433303,1773609038814,-18518.86634986,0.00015594,3]
[408433304,1773609038823,-5000.0,0.0001564,2]
[408433305,1773609038832,-2230.315306,0.00015642,2]
[408433306,1773609038841,-500.0,0.0001573,2]
[408433307,1773609038851,-500.0,0.0001573,2]
[408433308,1773609038860,-500.0,0.0001573,5]
[408433309,1773609038869,-500.0,0.0001573,2]
[408433310,1773609038878,-500.00000001,0.0001573,5]
[408433311,1773609038887,-327.2063044,0.0001573,2]
[408433312,1773609038896,-2100.0,0.00015804,2]
[408433313,1773609038906,-8343.49426106,0.00015867,2]
[408433314,1773609038915,-2500.0,0.0001589,2]
[408433315,1773609039168,-270.83333333,0.00016,3]
[408433316,1773609039178,-11815.7852468,0.00016,5]
[408433317,1773609039187,-644.68309207,0.00016006,2]
[408433318,1773609039198,-2312.83697232,0.0001619,2]
[408433319,1773609039208,-545.08619675,0.00016352,2]
[408433320,1773609039219,-160.0,0.00016396,7]
[408433321,1773609039230,-185.120397,0.00016396,7]
[408433322,1773609039241,-210.240795,0.00016396,7]
[408433323,1773609039251,-235.361193,0.00016396,7]
[408433324,1773609039262,-260.481591,0.00016396,7]
[408433325,1773609039272,-285.601988,0.00016396,7]
[408433326,1773609039282,-310.722386,0.00016396,7]
[408433327,1773609039291,-335.842784,0.00016396,7]
[408433328,1773609039301,-360.963182,0.00016396,7]
[408433329,1773609039311,-386.083579,0.00016396,7]
[408433330,1773609039320,-217.131071,0.00016396,7]
[408433331,1773609039329,-293.38809,0.00016396,7]
[408433332,1773609039339,-160.0,0.00016396,7]
[408433333,1773609039349,-215.458374,0.00016396,7]
[408433334,1773609039359,-270.916749,0.00016396,7]
[408433335,1773609039368,-326.375123,0.00016396,7]
[408433336,1773609039378,-381.833498,0.00016396,7]
[408433337,1773609039388,-437.291872,0.00016396,7]
[408433338,1773609039398,-492.750247,0.00016396,7]
[408433339,1773609039408,-548.208622,0.00016396,7]
[408433340,1773609039418,-603.666996,0.00016396,7]
[408433341,1773609039427,-659.125371,0.00016396,7]
[408433342,1773609039436,-244.272456,0.00016396,7]
[408433343,1773609039446,-295.050077,0.00016396,7]
[408433344,1773609039455,-1514.2,0.00016438,2]
[408433345,1773609039464,-151.0,0.00016438,2]
[408433346,1773609039474,-1516.27137809,0.00016438,2]
[408433347,1773609039483,-1000.0,0.00016497,2]
[408433348,1773609039493,-1000.0,0.00016497,2]
[408433349,1773609039504,-1000.0,0.00016497,2]
[408433350,1773609039513,-1000.0,0.00016497,2]
[408433351,1773609039522,-1000.0,0.00016497,2]
[408433352,1773609039531,-1000.0,0.00016497,2]
[408433353,1773609039541,-1000.0,0.00016497,2]
[408433354,1773609039550,-1000.0,0.00016497,2]
[408433355,1773609039559,-1000.0,0.00016497,2]
[408433356,1773609039568,-1000.0,0.00016497,2]
[408433357,1773609039577,-1000.0,0.00016497,2]
[408433358,1773609039587,-1000.0,0.00016497,2]
[408433359,1773609039599,-1000.0,0.00016497,2]
[408433360,1773609039609,-1000.0,0.00016497,2]
[408433361,1773609039618,-1000.0,0.00016497,2]
[408433362,1773609039626,-1000.0,0.00016497,2]
[408433363,1773609039636,-1000.0,0.00016497,2]
[408433364,1773609039645,-1000.0,0.00016497,2]
[408433365,1773609039655,-1000.0,0.00016497,2]
[408433366,1773609039664,-1000.0,0.00016497,2]
[408433367,1773609039673,-1000.0,0.00016497,2]
[408433368,1773609039682,-1000.0,0.00016497,2]
[408433369,1773609039692,-1000.0,0.00016497,2]
[408433370,1773609039701,-1000.0,0.00016497,2]
[408433371,1773609039711,-1000.0,0.00016497,2]
[408433372,1773609039720,-1000.0,0.00016497,2]
[408433373,1773609039729,-1000.0,0.00016497,2]
[408433374,1773609039738,-1000.0,0.00016497,2]
[408433375,1773609039747,-1000.0,0.00016497,2]
[408433377,1773609039756,-1000.0,0.00016497,2]
[408433379,1773609039765,-1000.0,0.00016497,2]
[408433380,1773609039774,-1000.0,0.00016497,2]
[408433382,1773609039783,-1000.0,0.00016497,2]
[408433384,1773609039792,-1000.0,0.00016497,2]
[408433386,1773609039801,-658.343,0.00016497,2]
[408433388,1773609039810,-1514.2,0.00016712,2]
[408433389,1773609039820,-65225.43625608,0.00016731,2]
[408433390,1773609039829,-981.35400597,0.00016731,2]
[408433391,1773609039838,-1087.09,0.00016731,2]
[408433392,1773609039848,-1087.09,0.00016731,2]
[408433393,1773609039857,-1087.09,0.00016731,2]
[408433394,1773609039867,-1087.09,0.00016731,2]
[408433395,1773609039876,-1087.09,0.00016731,2]
[408433396,1773609039885,-1087.09,0.00016731,2]
[408433397,1773609039894,-1087.09,0.00016731,2]
[408433398,1773609039903,-1087.09,0.00016731,2]
[408433399,1773609039912,-1087.09,0.00016731,2]
[408433400,1773609039921,-1087.09,0.00016731,2]
[408433401,1773609039930,-1087.09,0.00016731,2]
[408433402,1773609039939,-1087.09,0.00016731,2]
[408433403,1773609039948,-1087.09,0.00016731,2]
[408433404,1773609039957,-1087.09,0.00016731,2]
[408433405,1773609039966,-1087.09,0.00016731,2]
[408433406,1773609039975,-1087.09,0.00016731,2]
[408433407,1773609039984,-1087.09,0.00016731,2]
[408433409,1773609039993,-1087.09,0.00016731,2]
[408433410,1773609040002,-1087.09,0.00016731,2]
[408433412,1773609040011,-1087.09,0.00016731,2]
[408433414,1773609040020,-1087.09,0.00016731,2]
[408433415,1773609040029,-1087.09,0.00016731,2]
[408433416,1773609040041,-1087.09,0.00016731,2]
[408433418,1773609040050,-1087.09,0.00016731,2]
[408433419,1773609040060,-1087.09,0.00016731,2]
[408433421,1773609040070,-1087.09,0.00016731,2]
[408433423,1773609040081,-1087.09,0.00016731,2]
[408433424,1773609040091,-2030.89,0.00016731,2]
[408433425,1773609040100,-285.74426784,0.00016735,30]
[408433426,1773609040111,-276.21403929,0.00016735,30]
[408433427,1773609040120,-2398.4119403,0.00016738,2]
[408433428,1773609040128,-160.9507888,0.00016744,30]
[408433429,1773609040137,-2000.0,0.00016772,7]
[408433430,1773609040146,-1148.55854783,0.00016839,30]
[408433431,1773609040155,-8984.87027928,0.00016855,2]
[408433433,1773609040165,-3450.0,0.00016875,30]
[408433434,1773609040174,-3450.0,0.00016875,30]
[408433435,1773609040183,-3321.0,0.00016875,30]
[408433436,1773609040192,-277.48987153,0.00016877,3]
[408433437,1773609040201,-747.5,0.000169,2]
[408433438,1773609040210,-5253.62513559,0.00016958,30]
[408433439,1773609040219,-1223.47558137,0.0001696,30]
[408433440,1773609040228,-1514.2,0.00016986,2]
[408433441,1773609040237,-82897.94312599,0.00017,2]
[408433442,1773609040246,-1000.0,0.00017,7]
[408433443,1773609040255,-200.0,0.00017,2]
[408433444,1773609040264,-1057.17346592,0.00017,2]
[408433445,1773609040274,-272.06712988,0.00017,3]
[408433446,1773609040283,-270.83333333,0.00017,7]
[408433447,1773609040291,-1330.02595666,0.00017054,30]
[408433448,1773609040301,-600.0,0.00017065,2]
[408433449,1773609040310,-1148.55854783,0.00017181,60]
[408433450,1773609040319,-5253.62513559,0.0001719,30]
[408433451,1773609040328,-279.44487623,0.00017197,60]
[408433452,1773609040338,-228.13472548,0.00017197,60]
[408433453,1773609040347,-156.0,0.00017199,2]
[408433454,1773609040356,-1514.2,0.0001726,2]
[408433455,1773609040365,-174.82722222,0.00017276,60]
[408433456,1773609040374,-2487.15318209,0.00017286,2]
[408433457,1773609040383,-1223.47558137,0.00017326,30]
[408433458,1773609040393,-5253.62513559,0.00017422,30]
[408433459,1773609040402,-1330.02595666,0.00017446,30]
[408433460,1773609040412,-2000.79278278,0.0001745,2]
[408433461,1773609040421,-1000.0,0.00017479,2]
[408433462,1773609040430,-1000.0,0.000175,7]
[408433463,1773609040438,-1148.55854783,0.00017523,60]
[408433464,1773609040447,-1514.2,0.00017534,2]
[408433465,1773609040456,-2153.57293057,0.000176,2]
[408433466,1773609040465,-5253.62513559,0.00017654,30]
[408433467,1773609040474,-1223.47558137,0.00017692,60]
[408433468,1773609040483,-267.87,0.00017762,2]
[408433469,1773609040492,-1514.2,0.00017808,2]
[408433470,1773609040502,-2306.6966469,0.00017834,2]
[408433471,1773609040511,-1330.02595666,0.00017838,30]
[408433472,1773609040521,-9169.158663,0.00017842,5]
[408433473,1773609040530,-1148.55854783,0.00017864,60]
[408433474,1773609040540,-1184.72846851,0.00017879,30]
[408433475,1773609040549,-5253.62513559,0.00017886,30]
[408433476,1773609040558,-318.41116746,0.00017889,60]
[408433477,1773609040567,-747.5,0.000179,2]
[408433478,1773609040577,-219.0,0.00017973,3]
[408433479,1773609040586,-11446.54904836,0.00018,4]
[408433480,1773609040595,-5000.0,0.00018,7]
[408433481,1773609040604,-9012.93,0.00018,2]
[408433482,1773609040614,-598.9043071,0.00018,15]
[408433483,1773609040623,-2500.0,0.00018,2]
[408433484,1773609040632,-1000.0,0.00018,7]
[408433485,1773609040641,-196.2526701,0.00018007,2]
[408433486,1773609040650,-1223.47558137,0.00018059,60]
[408433487,1773609040659,-1514.2,0.00018082,2]
[408433488,1773609040668,-2000.0,0.00018095,7]
[408433489,1773609040677,-5253.62513559,0.00018118,60]
[408433490,1773609040686,-1140.52207443,0.00018192,30]
[408433491,1773609040695,-1148.55854783,0.00018206,60]
[408433492,1773609040704,-1330.02595666,0.0001823,60]
[408433493,1773609040713,-1184.72846851,0.00018273,60]
[408433494,1773609040723,-285.74426784,0.00018319,60]
[408433495,1773609040733,-276.21403929,0.00018319,60]
[408433496,1773609040742,-160.9507888,0.0001833,60]
[408433497,1773609040751,-5253.62513559,0.0001835,60]
[408433498,1773609040760,-1514.2,0.00018356,2]
[408433499,1773609040769,-250.0,0.00018356,2]
[408433500,1773609040778,-1216.57541059,0.00018379,60]
[408433501,1773609040789,-1223.47558137,0.00018425,60]
[408433502,1773609040800,-5234.25413233,0.0001845,2]
[408433503,1773609040811,-170.730575,0.00018493,2]
[408433504,1773609040819,-162.33047169,0.00018539,120]
[408433505,1773609040830,-1148.55854783,0.00018548,60]
[408433506,1773609040841,-279.44487623,0.00018557,60]
[408433507,1773609040851,-228.13472548,0.00018557,60]
[408433508,1773609040861,-1000.0,0.00018575,2]
[408433509,1773609040870,-5253.62513559,0.00018582,60]
[408433510,1773609040880,-1140.52207443,0.00018601,60]
[408433511,1773609040889,-1330.02595666,0.00018622,60]
[408433512,1773609040898,-1514.2,0.0001863,2]
[408433513,1773609040908,-1184.72846851,0.00018666,60]
[408433514,1773609040919,-1142.09530735,0.00018714,60]
[408433515,1773609040929,-5000.0,0.00018768,2]
[408433516,1773609040939,-720.0,0.00018771,2]
[408433517,1773609040948,-1223.47558137,0.00018791,60]
[408433518,1773609040958,-5253.62513559,0.00018813,60]
[408433519,1773609040967,-9989.72402129,0.0001883,8]
[408433520,1773609040976,-644.68309207,0.0001885,2]
[408433521,1773609040985,-1327.72535,0.00018856,7]
[408433522,1773609040995,-198.560043,0.00018856,7]
[408433523,1773609041004,-1148.55854783,0.0001889,60]
[408433524,1773609041014,-747.5,0.000189,2]
[408433525,1773609041023,-1514.2,0.00018904,2]
[408433526,1773609041036,-350.0,0.00018904,2]
[408433527,1773609041045,-75488.82912105,0.00019,2]
[408433528,1773609041055,-360.15862495,0.00019,20]
[408433529,1773609041064,-2603.49,0.00019,2]
[408433530,1773609041075,-24605.15330205,0.00019,2]
[408433531,1773609041084,-1000.0,0.00019,2]
[408433532,1773609041093,-49454.00936543,0.00019,2]
[408433533,1773609041295,-935.0,0.00015256,2]
[408433534,1773609041304,-3434.70325648,0.00015256,2]
[408433542,1773609042881,-4740.16662601,0.00017534,2]
[408433544,1773609042893,-1050.59287838,0.00017534,2]
[408433545,1773609042936,-445.37030241,0.00017534,2]
[408433546,1773609042991,-2272.37693665,0.00017534,2]
[408433547,1773609043001,-2371.49325655,0.00017534,2]
[408433548,1773609043011,-2990.78985065,0.0001881,2]
[408433549,1773609043020,-545.99063457,0.00019,2]
[408433550,1773609043029,-4561.08688776,0.00019,2]
[408433551,1773609043044,-438.91311224,0.00019,2]
[408433552,1773609043052,-787.13990598,0.00019,2]
[408433559,1773609045832,-346.38830132,0.00011478,2]
[408433560,1773609045888,-90.61169868,0.00011478,2]
[408433561,1773609045898,-437.0,0.00014478,2]
[408433562,1773609045907,-437.0,0.00017478,2]
[408433563,1773609045917,-908.91065836,0.00019,2]
[408433564,1773609045929,-3303.94943566,0.00019,2]
[408433565,1773609045939,-5000.0,0.00019,2]
[408433566,1773609045948,-5000.0,0.00019,2]
[408433567,1773609045957,-5000.0,0.00019,2]
[408433568,1773609045967,-2636.0,0.00019,5]
[408433569,1773609045976,-10062.0,0.00019,5]
[408433570,1773609045985,-468.0,0.00019,5]
[408433571,1773609045995,-1140.52207443,0.00019011,60]
[408433572,1773609046004,-1137.72730106,0.00019013,60]
[408433573,1773609046014,-1330.02595666,0.00019013,60]
[408433574,1773609046023,-200.0,0.0001902,120]
[408433575,1773609046033,-5253.62513559,0.00019045,60]
[408433576,1773609046046,-251.30328762,0.00019048,5]
[408433577,1773609046055,-1184.72846851,0.0001906,60]
[408433578,1773609046064,-220.0,0.00019068,3]
[408433579,1773609046073,-152.11907015,0.00019095,60]
[408433580,1773609046085,-174.82722222,0.00019095,120]
[408433581,1773609046095,-969.21,0.000191,2]
[408433582,1773609046104,-1142.09530735,0.0001911,60]
[408433583,1773609046115,-1223.47558137,0.00019157,60]
[408433584,1773609046124,-1514.2,0.00019178,2]
[408433585,1773609046134,-2562.07,0.00019178,2]
[408433586,1773609046143,-2562.07,0.00019178,2]
[408433587,1773609046152,-2562.07,0.00019178,2]
[408433588,1773609046161,-2562.07,0.00019178,2]
[408433589,1773609046171,-2562.07,0.00019178,2]
[408433590,1773609046181,-2562.07,0.00019178,2]
[408433591,1773609046190,-2562.07,0.00019178,2]
[408433592,1773609046199,-2562.07,0.00019178,2]
[408433593,1773609046209,-1281.04,0.00019178,2]
[408433594,1773609046218,-2562.0738,0.00019178,2]
[408433595,1773609046228,-1281.0369,0.00019178,2]
[408433596,1773609046237,-1281.0369,0.00019178,2]
[408433597,1773609046246,-1281.03,0.00019178,2]
[408433598,1773609046255,-1280.07,0.00019178,2]
[408433599,1773609046265,-300.0,0.00019178,2]
[408433600,1773609046275,-300.0,0.00019178,2]
[408433601,1773609046284,-300.0,0.00019178,2]
[408433602,1773609046294,-300.0,0.00019178,2]
[408433603,1773609046304,-300.0,0.00019178,2]
[408433604,1773609046313,-300.0,0.00019178,2]
[408433605,1773609046323,-300.0,0.00019178,2]
[408433606,1773609046332,-300.0,0.00019178,2]
[408433607,1773609046341,-300.0,0.00019178,2]
[408433608,1773609046351,-300.0,0.00019178,2]
[408433609,1773609046361,-300.0,0.00019178,2]
[408433610,1773609046370,-300.0,0.00019178,2]
[408433611,1773609046380,-300.0,0.00019178,2]
[408433612,1773609046389,-300.0,0.00019178,2]
[408433613,1773609046399,-300.0,0.00019178,2]
[408433614,1773609046408,-300.0,0.00019178,2]
[408433615,1773609046417,-300.0,0.00019178,2]
[408433616,1773609046427,-300.0,0.00019178,2]
[408433617,1773609046437,-300.0,0.00019178,2]
[408433618,1773609046446,-300.0,0.00019178,2]
[408433619,1773609046456,-300.0,0.00019178,2]
[408433620,1773609046466,-300.0,0.00019178,2]
[408433621,1773609046475,-300.0,0.00019178,2]
[408433622,1773609046485,-265.37916152,0.00019178,2]
[408433623,1773609046498,-34.62083848,0.00019178,2]
[408433624,1773609046508,-300.0,0.00019178,2]
[408433625,1773609046518,-300.0,0.00019178,2]
[408433626,1773609046527,-151.0,0.00019178,2]
[408433627,1773609046536,-151.0,0.00019178,2]
[408433628,1773609046546,-151.0,0.00019178,2]
[408433629,1773609046555,-151.0,0.00019178,2]
[408433630,1773609046565,-151.0,0.00019178,2]
[408433631,1773609046575,-151.0,0.00019178,2]
[408433632,1773609046584,-151.0,0.00019178,2]
[408433633,1773609046594,-151.0,0.00019178,2]
[408433634,1773609046604,-151.0,0.00019178,2]
[408433635,1773609046614,-151.0,0.00019178,2]
[408433636,1773609046624,-151.0,0.00019178,2]
[408433637,1773609046634,-151.0,0.00019178,2]
[408433638,1773609046644,-151.0,0.00019178,2]
[408433639,1773609046654,-151.0,0.00019178,2]
[408433640,1773609046664,-151.0,0.00019178,2]
[408433641,1773609046674,-151.0,0.00019178,2]
[408433642,1773609046684,-242.54493408,0.00019178,2]
[408433643,1773609046694,-2368.78911302,0.000192,2]
[408433644,1773609046710,-1257.87188007,0.000192,2]
[408433645,1773609046726,-14942.98633211,0.000192,2]
[408433799,1773610238089,-5000.0,7.126e-05,2]
[408433801,1773610238099,-1200.0,7.198e-05,2]
[408433803,1773610238108,-522.0,7.199e-05,2]
[408433805,1773610238118,-500.0,7.543e-05,2]
[408433807,1773610238127,-189.0,7.562e-05,2]
[408433809,1773610238137,-300.0,7.562e-05,2]
[408433811,1773610238146,-300.0,7.562e-05,2]
[408433813,1773610238155,-500.0,7.563e-05,2]
[408433815,1773610238164,-500.0,7.563e-05,2]
[408433817,1773610238173,-500.0,7.563e-05,2]
[408433819,1773610238182,-500.0,7.563e-05,2]
[408433821,1773610238192,-526.55085562,7.563e-05,2]
[408433823,1773610238201,-500.0,7.563e-05,2]
[408433825,1773610238210,-500.0,7.563e-05,2]
[408433827,1773610238220,-500.0,7.563e-05,2]
[408433829,1773610238229,-500.0,7.563e-05,2]
[408433831,1773610238238,-500.0,7.563e-05,2]
[408433833,1773610238247,-500.0,7.563e-05,2]
[408433835,1773610238256,-500.0,7.563e-05,2]
[408433837,1773610238265,-500.0,7.563e-05,2]
[408433839,1773610238275,-500.0,7.563e-05,2]
[408433841,1773610238285,-500.0,7.563e-05,2]
[408433843,1773610238294,-500.0,7.563e-05,2]
[408433845,1773610238304,-217.5157175,7.563e-05,2]
[408433847,1773610238313,-500.0,7.563e-05,2]
[408433849,1773610238322,-500.0,7.563e-05,2]
[408433851,1773610238331,-500.0,7.563e-05,2]
[408433853,1773610238340,-500.0,7.563e-05,2]
[408433855,1773610238349,-500.0,7.563e-05,2]
[408433857,1773610238358,-500.0,7.563e-05,2]
[408433859,1773610238367,-500.0,7.563e-05,2]
[408433861,1773610238377,-500.0,7.563e-05,2]
[408433863,1773610238389,-500.0,7.563e-05,2]
[408433865,1773610238399,-500.0,7.563e-05,2]
[408433867,1773610238408,-500.0,7.563e-05,2]
[408433869,1773610238418,-500.0,7.563e-05,2]
[408433872,1773610238431,-500.0,7.563e-05,2]
[408433873,1773610238440,-500.0,7.563e-05,2]
[408433875,1773610238449,-500.0,7.563e-05,2]
[408433877,1773610238461,-500.0,7.563e-05,2]
[408433879,1773610238470,-500.0,7.563e-05,2]